{"text_format":"1","workbook":"xlsx","n_sheets":1,"sheets":["Pedido"],"not_rendered":{"charts":0,"images":1,"macros":1,"external_links":0,"defined_names":0,"comments":0,"pivot_tables":0},"unopened":[],"bounds":{"document_bytes":16777216,"sheet_cells":100000,"rows_first":2000,"rows_last":500,"rows_between":2000,"halvings":0,"cell_chars":16384,"cell_head_chars":4096},"cells_cut":0,"cells_raw":0,"read":"whole","date_system":"1900"}

{"sheet":"Pedido","index":0,"n_rows":999,"n_cols":12,"rows_kept":999,"cut":false,"hidden":false,"merged":[[3,0,3,1],[1,11,5,13],[6,11,6,13],[5,2,5,9]]}
[]
[null,null,null,null,null,null,null,"Sub-Total",{"$f":"SUMPRODUCT(H9:H1048576,D9:D1048576)","v":0},null,null,"EL PEDIDO TOMARÁ LOS PRECIOS DEL SISTEMA ACTUAL, LOS PRECIOS AQUÍ MENCIONADOS SON DE LA FECHA DEL ARCHIVO DESCARGADO."]
[null,null,"Pedidos Manuales",null,null,null,null,"I.V.A.",{"$f":"SUMPRODUCT((H9:H1048576>0)*F9:F1048576,D9:D1048576/100,H9:H1048576)","v":0}]
["RIF J-31280869-1",null,null,null,null,null,null,"TOTAL",{"$f":"I2+I3","v":0}]
[]
["Cliente",null,{"$f":"IF(B6=\"\",\"<-- 1. Ingrese su código de cliente (4 dígitos), en caso de no conocerlo contáctenos por drexaca@gmail.com o 0212.242.45.27\",\"\")","v":"<-- 1. Ingrese su código de cliente (4 dígitos), en caso de no conocerlo contáctenos por drexaca@gmail.com o 0212.242.45.27"}]
[null,null,null,null,null,null,null,"↓ 2. Coloque aquí las cantidades a pedir",null,null,null,"2024-09-03T15:03:35"]
["Código Interno","Código de Barras","Descripción del Producto","Precio","Unidad de Manejo","Iva","Existencia","Pedido","Revisar",null,null,"← 3. Al culminar debe hacer clic en el botón \"Procesar\""]
["10011","010011","MAVICA TERMOMETRO ORAL RECTAL",118,"C-12",16,10,null,{"$f":"IF(H9<>\"\",IF(H9>G9,\"Revisar\",\"\"),\"\")","v":""}]
["10021","723592772994","BRIUTCARE ESPONJA LAPARATOMIA ESTERIL",121.84,"C-25",16,19,null,{"$f":"IF(H10<>\"\",IF(H10>G10,\"Revisar\",\"\"),\"\")","v":""}]
["10023","723592773106","BRIUTCARE ROLLO GASA PARA QUEMADO",64.97,"C-20",16,9,null,""]
["10051","723592773045","BRIUTCARE MACROGOTERO ADULTO 20 GOTAS/GR",18.239999999999998,"C-25",null,30,null,""]
["10052","723592773076","BRIUTCARE MICROGOTERO PEDIATR 60 GOTAS/G",19.2,"C-25",null,56,null,""]
["10054","6971077610130","OBTURADOR AMARILLO DIPHOCARE",3.7,"C-100",null,70,null,""]
["10057","6971077610383","BURETA DE INFUSION 150 ml  DIPHOCARE",74,"C-10",16,6,null,""]
["11201","723592772963","JERINGA EXTRACCION DE SANGRE BRIUT CARE",20.495999999999999,"C-25",null,2,null,""]
["11384","723592772840","SCALP 21 BRIUTCARE",3.37,"C-100",null,38,null,""]
["11386","697107761083","SCALP 21 DIPHOCARE",3.37,"C-100",null,25,null,""]
["11419","0081096502193","INYECTADORA 60 CC SIN AGUJA  SEBIS",16.28,"C-25",16,50,null,""]
["13071","732064572970","SONDAS  NELATON No.10 BRIUT CARE",8.76,"C-50",null,33,null,""]
["13074","732064573090","SONDAS  NELATON No. 24 BRIUT CARE",8.76,"C-50",null,32,null,""]
["13075","732064573007","SONDAS  NELATON No.18 BRIUT CARE",8.76,"C-50",null,7,null,""]
["13076","732064573038","SONDAS  NELATON No. 20 BRIUT CARE",8.76,"C-50",null,35,null,""]
["13081","6971077610277","SONDAS FOLEY LATEX 2 VIAS # 14 DIPHOCARE",26.578949999999999,"C-10",null,6,null,""]
["13082","013082","SONDAS FOLEY LATEX 2 VIAS # 16 DIPHOC",26.578949999999999,"C-10",null,8,null,""]
["18013","7593567003001","GASA CLINICA DEXXMEDICAL 90 x 60",45,"",16,138,null,""]
["18032","723592772581","BRIUT CARE RECOLECTOR ORINA PEDIATRICO",4.84,"C-100",16,30,null,""]
["18036","7593567000673","DEXX RECOLECTORES DE HECES",2.5,"C-100",16,168,null,""]
["19006","019006","GUATA ORTOPEDICA  4 x 3",33.4,"C-12",16,15,null,""]
["19007","019007","GUATA ORTOPEDICA  6 x 3",50.13,"C-12",16,4,null,""]
["35005","7593255000282","ALNA  ALCOHOL GALON ANTISEPTICO",620.37,"C-04",null,1,null,""]
["35007","7593255000107","ALNA  AGUA OXIGENADA 240 ML",28.18,"C-36",null,19,null,""]
["35010","7593255000138","ALNA  AGUA OXIGENADA GALON",310,"C-04",null,8,null,""]
["36003","7591501000031","HIDEVEN ALGODON  50 GR.",42.82,"C-40",16,5,null,""]
["36004","7591501000048","HIDEVEN ALGODON 100 GR.",92.23,"C-20",16,12,null,""]
["36005","7591501000055","HIDEVEN ALGODON 250 GR.",185,"C-20",16,27,null,""]
["40105","7596139000262","SOMA PASTEZINC PAÑALITIS 50 gr",70,"C-24",null,1,null,""]
["40112","7596139000033","SOMA JARABE SABILA 120 ML",80,"C-24",null,18,null,""]
["40122","7596139000156","SOMA SUERO FISIOLOGICO GOTAS  15 ml",22,"C-12",null,24,null,""]
["40124","7596139000101","SOMA ACEITE DE RICINO PLUS 30 ml",70,"",null,25,null,""]
["40151","7596139000453","SOMA SOMEDINE JABON IODO 10 % 120 CC",158,"C-24",null,30,null,""]
["40204","7592368001889","F.S.I. SAL DE EPSON( SAL DE HIGUERA)20gr",45.58,"C-06",null,11,null,""]
["40209","7592368003456","F.S.I. CITRATO DE POTASIO 240 cc 10%",145.36000000000001,"C-12",null,18,null,""]
["40216","7592368003005","F.S.I. FLOR DE JAMAICA 25 GR",34.92,"C-25",null,3,null,""]
["40220","7592368000653","F.S.I. SOLUCIÓN FISIOLÓGICA  30 CC",39.25,"C-06",null,4,null,""]
["40223","7592368000134","F.S.I. ACEITE DE PALO 15 ml",85.03,"C-12",null,18,null,""]
["40226","7592368000592","F.S.I. MIEL DE BORAX 30 CC",64.040000000000006,"C-06",null,1,null,""]
["40227","7592368000165","F.S.I. ACEITE DE RICINO 30 CC",91.88,"C-06",null,4,null,""]
["40228","7592368000745","F.S.I. TINTURA DE ÁRNICA 30 cc",57.62,"C-06",null,24,null,""]
["40231","7592368000806","F.S.I. TINTURA DE YODO 30 CC",44.74,"C-06",null,16,null,""]
["40235","7592368000837","F.S.I. VIOLETA DE GENCIANA 30 cc",49.03,"C-06",null,16,null,""]
["40251","7592368003395","F.S.I. CREMA AZAHARES 30 G",67.47,"C-12",null,10,null,""]
["40253","7592368003401","F.S.I. CREMA ÁRNICA  90 GR",106,"C-06",null,2,null,""]
["40254","7592368003388","F.S.I. CREMA AZUFRADA 30 GR",63.55,"C-12",null,10,null,""]
["40262","7592368000714","F.S.I. THIMEROSAL INCOLORO 30 CC",42.28,"C-06",null,12,null,""]
["47105","7591309003692","ADEL UNGUENTO 50 gr",142.21,"C-12",16,10,null,""]
["47106","7591309000714","VITENOL CREMA 15 GR",72.05,"C-24",16,54,null,""]
["47110","7591309222000","WAMPOLE EMULSION TUT. FRUTI 200 ml",92.44,"C-12",16,5,null,""]
["47111","7591309000967","WAMPOLE EMULSION TUT. FRUTI 240 CC",110.44,"C-09",16,11,null,""]
["47113","7591309252007","WAMPOLE EMULSION NARANJA 200 cc",92.44,"C-12",16,2,null,""]
["47114","7591309000608","WAMPOLE EMULSION NARANJA 240 CC",110.44,"C-09",16,5,null,""]
["47117","7591309262006","WAMPOLE EMULSION FRESA 200 cc",92.44,"C-12",16,13,null,""]
["47118","7591309000530","WAMPOLE EMULSION FRESA 240 CC",110.44,"C-09",16,4,null,""]
["48885","7591353700066","SIEMPRE SECO PROTECTOR DE CAMA x 20",260.89,"C-04",16,4,null,""]
["49002","7591353515103","SECUREZZA COMFORT MEDIANO X 6 (NUEVO)",170.46,"C-06",16,13,null,""]
["49023","7591353700059","SECUREZZA TOALLA POST-PARTO PREMIUN X 10",56.81,"C-12",16,5,null,""]
["49025","7591353516605","SECUREZZA TOALLA POST-PARTO  X 15",68.62,"C-12",16,25,null,""]
["49040","7591353701391","FRIENDS PROT C/MANZANILLA  x 40",40,"C-12",16,56,null,""]
["49042","7591353701490","FRIENDS PROT REGULAR S/PERFUME X 40",40,"C-12",16,264,null,""]
["49058","7591353701872","FRIENDS TOALLAS SANITARIAS TELA  x 14",58.4,"C-12",16,42,null,""]
["49061","7591061640012","FRIENDS JABON LIQUIDO INTIMO 240ml",110,"C-12",16,37,null,""]
["49071","7591353516100","CHICCO PAÑAL DE NIÑO MEDIANO X 20",137.24,"C-08",16,15,null,""]
["49075","7591353516308","CHICCO PAÑAL DE NIÑO  XTRA GRANDE X 20",152.57,"C-08",16,8,null,""]
["50013","7509546652139","COLGATE CREMA MENTA   60  CC",29.727,"C-144",16,445,null,{"$f":"IF(H74<>\"\",IF(H74>G74,\"Revisar\",\"\"),\"\")","v":""}]
["50014","7501035911031","COLGATE CREMA MENTA  100 CC",64.959000000000003,"C-72",16,22,null,""]
["500321","7702010111501","COLGATE CREMA TRIPLE ACCION  60 ml",32.295999999999999,"C-144",16,16,null,""]
["50040","7509546653532","COLGATE CREMA TOTAL 12  ANTISARRO 75 ml",106.43,"C-72",16,11,null,""]
["50047","7509546653402","COLGATE CREMA SENSPROALIVIO DIENTE140gr,",175,"C-48",16,102,null,""]
["50048","7509546672298","COLGATE CREMA SENSPROALIVIO ENCIA 140gr,",175,"C-48",16,48,null,""]
["50051","7891024034095","COLGATE GEL DENTAL KIDS FRESA  50 gr",34.869999999999997,"C-72",16,21,null,""]
["50056","7702010420320","PROTEX JABON LIQUIDO MANOS ALOE  221 ml",110.47,"C-12",16,14,null,""]
["50057","7702010420313","PROTEX JABON LIQUIDO MANOS AVENA 221 ml",110.47,"C-12",16,17,null,""]
["500591","099176922650","PROTEX JABON MEN SPORT  TRIPOCHO 110 gr",119.64,"C-32",16,18,null,""]
["50062","7702010920622","PROTEX JABON FRESH  3 x 110 gr",119.64,"C-72",16,67,null,""]
["50063","7509546680644","PROTEX JABON CARBON DETOX  3 x 110",119.64,"C-24",16,11,null,""]
["500638","099176922391","PROTEX JABON ALOE 3 x 110",119.64,"C-32",16,86,null,""]
["500642","7702010420337","PROTEX JABON AVENA 110 gr",43.31,"C-72",16,6,null,""]
["500644","7702010920615","PROTEX JABON AVENA  x 3  110 gr",119.64,"C-24",16,11,null,""]
["500645","7702010920820","PROTEX JABON LIMPIEZA PROFU  x 3  110 gr",119.64,"C-24",16,23,null,""]
["500657","7509546676968","PALMOLIVE JABON CARBON DETOX  3 x 110",119.64,"C-24",16,48,null,""]
["500659","7509546677026","PALMOLIVE JABON ALOE OLIVA  3  x 110 gr",119.64,"C-24",16,10,null,""]
["500661","7891024028650","PALMOLIVE JABON ALOE OLIVA  3 x  125 gr",130.65,"C-24",16,6,null,""]
["500671","7509546677040","PALMOLIVE JABON AVEN AZU MOREN 3 x110 gr",119.64,"C-24",16,17,null,""]
["500682","7509546677057","PALMOLIVE JABON GRANADA  3 X 110 gr",119.64,"C-24",16,31,null,""]
["500689","7509546078885","PALMOLIVE JABON LIQ CUERPO CEREZ COC 390",150.47,"C-12",16,55,null,""]
["500692","7509546059556","NEUTRO BALANCE JABON LIQUIDO MANOS 221ml",116.34,"c-12",16,15,null,""]
["500694","7509546655079","NEUTRO BALANCE JABON BABY 90 gr",53.09,"C-48",16,42,null,""]
["50116","6910021007206","COLGATE CEPILLO PREMIER  14 x 12",28.99,"C-12",16,36,null,""]
["50117","7891024316160","COLGATE CEPILLO 360 MEDIO",118.17,"C-12",16,43,null,""]
["50125","7509546653143","COLGATE CEPILLO COLORS x 5",177.63,"C-12",16,4,null,""]
["50132","7509546661346","COLGATE CEPILLO AGNES & FLUFFY x 2",190.47,"C-12",16,28,null,""]
["50133","7591083011098","COLGATE CEPILLO SMILES MINIONS 2-5",100.19,"C-24",16,14,null,""]
["50134","7509546074122","COLGATE CEPILLO KIDS TANDY +5",31.93,"C-48",16,46,null,""]
["50157","7591083018547","COLGATE PLAX REFRESCAN BUCAL TUBO 100 ml",79.27,"C-72",16,60,null,""]
["501612","7891024136119","COLGATE PLAX ICE 1 LITRO",298.37,"C-06",16,3,null,""]
["50162","7891024027028","COLGATE PLAX INFINITY 250 ml",97.26,"C-12",16,12,null,""]
["501621","7891024025406","COLGATE PLAX INFINITY 500 ml",165.88,"C-12",16,8,null,""]
["50163","7509546679525","COLGATE PLAX ODOR CONTROL 250 ml",97.26,"C-12",16,10,null,""]
["501631","7509546679532","COLGATE PLAX ODOR CONTROL 500 ml",165.88,"C-12",16,28,null,""]
["50165","7891024179420","COLGATE PLAX LUMINOUS WHITE 250 ml",117.81,"C-12",16,13,null,""]
["501651","7509546666976","COLGATE PLAX LUMINOUS WHITE CARBON 250ml",116.34,"C-12",16,33,null,""]
["501652","7509546666969","COLGATE PLAX ENCIAS REFORZADAS 250 ml",116.34,"C-12",16,30,null,""]
["50166","7891024033050","COLGATE PLAX ICE GLACIAL  250 ml",97.26,"C-12",16,20,null,""]
["501671","7891024027998","COLGATE PLAX ANTISARRO 500 ml",165.88,"C-12",16,11,null,""]
["501679","7891024028834","COLGATE PLAX TOTAL CLEAN MINT 250 ml",116.34,"C-12",16,31,null,""]
["50168","7891024028018","COLGATE PLAX TOTAL CLEAN MINT 500 ml",190.11,"C-12",16,10,null,""]
["50169","7891024030806","COLGATE PLAX KIDS MINIONS 250 ml",137.63,"C-12",16,6,null,""]
["501691","7891024136201","COLGATE PLAX ENJ KIDS TUTTI FRUTI 250 ml",137.63,"C-12",16,19,null,""]
["50171","7891024179925","COLGATE PERIOGARD ENJUAGUE BUCAL 250  ml",158.32,"C-12",16,9,null,""]
["50221","7509546059723","PALMOLIVE OPT CHAMPU 2 EN1LUMINOUS700ml",284.43,"C-12",16,3,null,""]
["50223","7509546066417","PALMOLIVE OPT CHAMPU 2EN1 700 ml THER PR",284.43,"C-12",16,4,null,""]
["50904","7591083018608","AXION LAVAPLATO EN CREMA 450 gr",128.08000000000001,"C-24",16,10,null,""]
["50908","7702010381256","AXION LAVAPLATO EN CREMA LIMON 235 gr",66.790000000000006,"C-48",16,32,null,""]
["50912","7702010381881","AXION LAVAPLATO EN CREMA ALOE 450 gr",141.30000000000001,"C-24",16,11,null,""]
["50914","7509546684321","AXION LAVAPLATO EN CREMA X-TREME 450 gr",141.30000000000001,"C-24",16,7,null,""]
["50944","7509546686875","SUAVITEL SUAVIZANTE BABY 1 LITRO",113.04,"C-12",16,10,null,""]
["50955","7501035904071","VEL DET ROSITA LIQUIDO REGULAR 1000 CC",272.68,"C-12",16,6,null,""]
["58051","7591404000817","ICE GEL CORAMODIO MENTOLADO TARRO 240gr",83.89,"C-12",16,2,null,""]
["58053","7591404002286","PUREZA GEL ANTIBACT TEENS UVA 80 GR",79.47,"C-24",16,1,null,""]
["58054","7591404002279","PUREZA GEL ANTIBACT TUTTIFRUTA 80 GR",79.33,"C-24",16,5,null,""]
["58055","7591404002262","PUREZA GEL ANTIBACT MANDARINA 80 GR",79.47,"C-24",16,1,null,""]
["58057","7591404002132","PUREZA GEL ANTIBACTERIAL 80 GR.",74.040000000000006,"C-24",16,10,null,""]
["581221","7591404002545","CORAMODIO ARNICA ROLLON 60 g",80.209999999999994,"C-12",16,6,null,""]
["58123","7591404000015","CORAMODIO CREMA CENTELLA ASIATICA 100 gr",89.78,"C-12",16,3,null,""]
["58131","7591404001081","CORAMODIO LOCION DEPILADORA MANZANIL10Og",124.5,"C-12",16,10,null,""]
["58133","7591404000756","CORAMODIO PROTECTOR SOLAR SPF 30  80 gr",347.38,"C-12",16,6,null,""]
["58141","7591404000961","CORAMODIO CREMA ANTIPAÑILITIS BEBE 80 gr",128.745,"C-12",16,4,null,""]
["58143","7591404003771","CORAMODIO CHAMPU BEBE 175 ml",76.102599999999995,"C-12",16,9,null,{"$f":"IF(H138<>\"\",IF(H138>G138,\"Revisar\",\"\"),\"\")","v":""}]
["58162","7591404003849","CORAMODIO JABON LIQ C/CLORHEXIDINA 250ml",208,"C-12",16,2,null,""]
["60012","7590005183394","DERMOX CREMA ANTIPAÑALITIS ORI TUBO 50 g",74.67,"C-12",16,7,null,""]
["60013","7590005183325","DERMOX CREMA ANTIPAÑALITIS ORIGIN 100  g",140.19,"C-12",16,5,null,""]
["60090","7590005164362","EVERY NIGHT BIO NUT CHAMPU COCO 365 cc",112.12,"C-12",16,12,null,""]
["60091","7590005164355","EVERY NIGHT BIO NUT CHAMPU COCO 210 ml",68.319999999999993,"C-12",16,16,null,""]
["60092","7590005164324","EVERY NIGHT BIO NUT CHAMPU FRUTAS 210 ml",70.444999999999993,"C-12",16,13,null,""]
["60093","7590005164331","EVERY NIGHT BIO NUT CHAMPU FRUTAS 365 ml",116.17,"C-12",16,4,null,""]
["60094","7590005164379","EVERY NIGHT BIO CHAMPU CACAO FRUT 210 ml",70.444999999999993,"C-12",16,15,null,""]
["60096","7590005164393","EVERY NIGHT BIO CHAMPU CEREALES  210 ml",70.444999999999993,"C-12",16,12,null,""]
["60097","7590005164409","EVERY NIGHT BIO CHAMPU CEREALES  365 ml",116.17,"C-12",16,2,null,""]
["60099","7590005164294","EVERY NIGHT BIO CHAMPU TE VERDE  210 ml",67.16,"C-12",16,9,null,""]
["60111","7590005164508","EVERY NIGHT ACONDIC FRUTAS 210 cc",68.62,"C-12",16,9,null,""]
["60113","7590005164492","EVERY NIGHT ACONDIC TE VERDE ALOE 210 cc",64.97,"C-12",16,12,null,""]
["60115","7590005164560","EVERY NIGHT ACONDIC COCO 210 ml",65.334999999999994,"C-12",16,19,null,""]
["60120","7590005164553","EVERY NIGHT ACONDIC CEREALES 365cc",109.84,"C-12",16,4,null,""]
["60126","7590005164805","EVERY NIGHT TRATAMIEN CAPILAR COCO 365cc",124.1,"C-12",16,2,null,""]
["60127","7590005164812","EVERY NIGHT TRATAMIE CAPILAR CACA0 350cc",126.21,"C-12",16,9,null,""]
["60140","7590005162849","EVERY NIGHT BIO DESOD COLONIA 90 GR",51.49,"C-12",16,6,null,""]
["601431","7590005162948","EVERY NIGHT BIO DES BABY PINK BARRA 50gr",99.24,"C-12",16,1,null,""]
["60151","7590005250164","EVERY NIGHT COLONIA NIÑOS SUAVE 200 ML",109.97,"C-12",16,1,null,""]
["60153","7590005163389","EVERY NIGHT CHAMPU NIÑOS PROTEINA 200 CC",62.39,"C-12",16,5,null,""]
["60169","7590005168018","EVERY NIGHT FIJADOR EN CREMA FRUTAS 45gr",46.04,"C-12",16,12,null,""]
["602011","7590005162658","EVERY NIGHT JABON MANZANA VERDE 3 x110 g",88.84,"C-24",16,12,null,""]
["602031","7590005162634","EVERY NIGHT JABON EXPL TROPICAL 3 x110 g",88.84,"C-24",16,22,null,""]
["60242","7590005008215","DRENE CHAMPU LISO 370 CC",122.09,"C-12",16,3,null,""]
["60261","7590005008437","DRENE ACONDICIONADOR SECO 370 CC",120.72,"C-12",16,11,null,""]
["60263","7590005008420","DRENE ACONDICIONADOR SECO 200 CC",73,"C-12",16,5,null,""]
["60266","7590005008406","DRENE ACONDICIONADOR LISO 200 CC",70.930000000000007,"C-12",16,2,null,""]
["60271","7590005008567","DRENE CREMA DE PEINAR CAB SECO 240 GR",90.63,"C-12",16,10,null,""]
["60401","7702037800068","ETERNA ESPONJA CUIDA UÑAS x 1",30.64,"C-24",16,11,null,""]
["75215","7592247000828","SAITO COLITAS GRANDES NEGRAS x 6",20.13,"C-12",16,2,null,""]
["77411","7591635000136","AVISPA CHAMPU  60 CC",53.74,"C-12",16,3,null,""]
["77441","7591635000860","SOMERGAN LOCION TOPICA  SARNICIDA 120 CC",107.48,"C-12",null,107,null,""]
["77442","7591635000853","SOMERGAN LOCION TOPICA  SARNICIDA 60 CC",85,"C-12",null,4,null,""]
["77492","7591635910251","NEVADA LIPS PROTECTOR FRESA",73.77,"",16,7,null,""]
["77493","7591635910268","NEVADA LIPS PROTECTOR MANZANA",73.77,"",16,19,null,""]
["77494","7591635910244","NEVADA LIPS PROTECTOR CEREZA",73.77,"",16,13,null,""]
["77495","7591635910275","NEVADA LIPS PROTECTOR COCO",73.77,"",16,1,null,""]
["83020","7593614000793","POLVO ORTOBORICO FRASCO 30 GR.",51,"C-40",16,15,null,""]
["83026","7593614000069","POLVO ORTOBORICO FRASCO ALOE VERA 120gr",78,"C-30",16,43,null,""]
["94041","7591066140036","CHICCO JABON EN BARRA PARA NIÑOS 90 gr",51.83,"C--30",16,9,null,""]
["94066","7591061647264","CHICCO COLONIA 110 CC",67.760000000000005,"C-24",16,10,null,""]
["94082","728417002584","CHICCO MOTAS DE ALGODON X 100",109.5,"C-12",16,12,null,""]
["94326","7591061400142","AMY TALCO  BEBE 200 gr",132.5,"C-24",16,8,null,""]
["94719","7591061648131","PHARSANA MASCARILLAS DESCARTABLES x 50",103.3,"C-08",16,4,null,""]
[null,null,null,null,null,null,null,null,""]
[null,null,null,null,null,null,null,null,""]
[null,null,null,null,null,null,null,null,""]
[null,null,null,null,null,null,null,null,""]
[null,null,null,null,null,null,null,null,""]
[null,null,null,null,null,null,null,null,""]
[null,null,null,null,null,null,null,null,""]
[null,null,null,null,null,null,null,null,""]
[null,null,null,null,null,null,null,null,""]
[null,null,null,null,null,null,null,null,""]
[null,null,null,null,null,null,null,null,""]
[null,null,null,null,null,null,null,null,""]
[null,null,null,null,null,null,null,null,""]
[null,null,null,null,null,null,null,null,""]
[null,null,null,null,null,null,null,null,""]
[null,null,null,null,null,null,null,null,""]
[null,null,null,null,null,null,null,null,""]
[null,null,null,null,null,null,null,null,""]
[null,null,null,null,null,null,null,null,{"$f":"IF(H202<>\"\",IF(H202>G202,\"Revisar\",\"\"),\"\")","v":""}]
[null,null,null,null,null,null,null,null,""]
[null,null,null,null,null,null,null,null,""]
[null,null,null,null,null,null,null,null,""]
[null,null,null,null,null,null,null,null,""]
[null,null,null,null,null,null,null,null,""]
[null,null,null,null,null,null,null,null,""]
[null,null,null,null,null,null,null,null,""]
[null,null,null,null,null,null,null,null,""]
[null,null,null,null,null,null,null,null,""]
[null,null,null,null,null,null,null,null,""]
[null,null,null,null,null,null,null,null,""]
[null,null,null,null,null,null,null,null,""]
[null,null,null,null,null,null,null,null,""]
[null,null,null,null,null,null,null,null,""]
[null,null,null,null,null,null,null,null,""]
[null,null,null,null,null,null,null,null,""]
[null,null,null,null,null,null,null,null,""]
[null,null,null,null,null,null,null,null,""]
[null,null,null,null,null,null,null,null,""]
[null,null,null,null,null,null,null,null,""]
[null,null,null,null,null,null,null,null,""]
[null,null,null,null,null,null,null,null,""]
[null,null,null,null,null,null,null,null,""]
[null,null,null,null,null,null,null,null,""]
[null,null,null,null,null,null,null,null,""]
[null,null,null,null,null,null,null,null,""]
[null,null,null,null,null,null,null,null,""]
[null,null,null,null,null,null,null,null,""]
[null,null,null,null,null,null,null,null,""]
[null,null,null,null,null,null,null,null,""]
[null,null,null,null,null,null,null,null,""]
[null,null,null,null,null,null,null,null,""]
[null,null,null,null,null,null,null,null,""]
[null,null,null,null,null,null,null,null,""]
[null,null,null,null,null,null,null,null,""]
[null,null,null,null,null,null,null,null,""]
[null,null,null,null,null,null,null,null,""]
[null,null,null,null,null,null,null,null,""]
[null,null,null,null,null,null,null,null,""]
[null,null,null,null,null,null,null,null,""]
[null,null,null,null,null,null,null,null,""]
[null,null,null,null,null,null,null,null,""]
[null,null,null,null,null,null,null,null,""]
[null,null,null,null,null,null,null,null,""]
[null,null,null,null,null,null,null,null,""]
[null,null,null,null,null,null,null,null,""]
[null,null,null,null,null,null,null,null,""]
[null,null,null,null,null,null,null,null,""]
[null,null,null,null,null,null,null,null,""]
[null,null,null,null,null,null,null,null,""]
[null,null,null,null,null,null,null,null,""]
[null,null,null,null,null,null,null,null,""]
[null,null,null,null,null,null,null,null,""]
[null,null,null,null,null,null,null,null,""]
[null,null,null,null,null,null,null,null,""]
[null,null,null,null,null,null,null,null,""]
[null,null,null,null,null,null,null,null,""]
[null,null,null,null,null,null,null,null,""]
[null,null,null,null,null,null,null,null,""]
[null,null,null,null,null,null,null,null,""]
[null,null,null,null,null,null,null,null,""]
[null,null,null,null,null,null,null,null,""]
[null,null,null,null,null,null,null,null,""]
[null,null,null,null,null,null,null,null,{"$f":"IF(H266<>\"\",IF(H266>G266,\"Revisar\",\"\"),\"\")","v":""}]
[null,null,null,null,null,null,null,null,""]
[null,null,null,null,null,null,null,null,""]
[null,null,null,null,null,null,null,null,""]
[null,null,null,null,null,null,null,null,""]
[null,null,null,null,null,null,null,null,""]
[null,null,null,null,null,null,null,null,""]
[null,null,null,null,null,null,null,null,""]
[null,null,null,null,null,null,null,null,""]
[null,null,null,null,null,null,null,null,""]
[null,null,null,null,null,null,null,null,""]
[null,null,null,null,null,null,null,null,""]
[null,null,null,null,null,null,null,null,""]
[null,null,null,null,null,null,null,null,""]
[null,null,null,null,null,null,null,null,""]
[null,null,null,null,null,null,null,null,""]
[null,null,null,null,null,null,null,null,""]
[null,null,null,null,null,null,null,null,""]
[null,null,null,null,null,null,null,null,""]
[null,null,null,null,null,null,null,null,""]
[null,null,null,null,null,null,null,null,""]
[null,null,null,null,null,null,null,null,""]
[null,null,null,null,null,null,null,null,""]
[null,null,null,null,null,null,null,null,""]
[null,null,null,null,null,null,null,null,""]
[null,null,null,null,null,null,null,null,""]
[null,null,null,null,null,null,null,null,""]
[null,null,null,null,null,null,null,null,""]
[null,null,null,null,null,null,null,null,""]
[null,null,null,null,null,null,null,null,""]
[null,null,null,null,null,null,null,null,""]
[null,null,null,null,null,null,null,null,""]
[null,null,null,null,null,null,null,null,""]
[null,null,null,null,null,null,null,null,""]
[null,null,null,null,null,null,null,null,""]
[null,null,null,null,null,null,null,null,""]
[null,null,null,null,null,null,null,null,""]
[null,null,null,null,null,null,null,null,""]
[null,null,null,null,null,null,null,null,""]
[null,null,null,null,null,null,null,null,""]
[null,null,null,null,null,null,null,null,""]
[null,null,null,null,null,null,null,null,""]
[null,null,null,null,null,null,null,null,""]
[null,null,null,null,null,null,null,null,""]
[null,null,null,null,null,null,null,null,""]
[null,null,null,null,null,null,null,null,""]
[null,null,null,null,null,null,null,null,""]
[null,null,null,null,null,null,null,null,""]
[null,null,null,null,null,null,null,null,""]
[null,null,null,null,null,null,null,null,""]
[null,null,null,null,null,null,null,null,""]
[null,null,null,null,null,null,null,null,""]
[null,null,null,null,null,null,null,null,""]
[null,null,null,null,null,null,null,null,""]
[null,null,null,null,null,null,null,null,""]
[null,null,null,null,null,null,null,null,""]
[null,null,null,null,null,null,null,null,""]
[null,null,null,null,null,null,null,null,""]
[null,null,null,null,null,null,null,null,""]
[null,null,null,null,null,null,null,null,""]
[null,null,null,null,null,null,null,null,""]
[null,null,null,null,null,null,null,null,""]
[null,null,null,null,null,null,null,null,""]
[null,null,null,null,null,null,null,null,""]
[null,null,null,null,null,null,null,null,{"$f":"IF(H330<>\"\",IF(H330>G330,\"Revisar\",\"\"),\"\")","v":""}]
[null,null,null,null,null,null,null,null,""]
[null,null,null,null,null,null,null,null,""]
[null,null,null,null,null,null,null,null,""]
[null,null,null,null,null,null,null,null,""]
[null,null,null,null,null,null,null,null,""]
[null,null,null,null,null,null,null,null,""]
[null,null,null,null,null,null,null,null,""]
[null,null,null,null,null,null,null,null,""]
[null,null,null,null,null,null,null,null,""]
[null,null,null,null,null,null,null,null,""]
[null,null,null,null,null,null,null,null,""]
[null,null,null,null,null,null,null,null,""]
[null,null,null,null,null,null,null,null,""]
[null,null,null,null,null,null,null,null,""]
[null,null,null,null,null,null,null,null,""]
[null,null,null,null,null,null,null,null,""]
[null,null,null,null,null,null,null,null,""]
[null,null,null,null,null,null,null,null,""]
[null,null,null,null,null,null,null,null,""]
[null,null,null,null,null,null,null,null,""]
[null,null,null,null,null,null,null,null,""]
[null,null,null,null,null,null,null,null,""]
[null,null,null,null,null,null,null,null,""]
[null,null,null,null,null,null,null,null,""]
[null,null,null,null,null,null,null,null,""]
[null,null,null,null,null,null,null,null,""]
[null,null,null,null,null,null,null,null,""]
[null,null,null,null,null,null,null,null,""]
[null,null,null,null,null,null,null,null,""]
[null,null,null,null,null,null,null,null,""]
[null,null,null,null,null,null,null,null,""]
[null,null,null,null,null,null,null,null,""]
[null,null,null,null,null,null,null,null,""]
[null,null,null,null,null,null,null,null,""]
[null,null,null,null,null,null,null,null,""]
[null,null,null,null,null,null,null,null,""]
[null,null,null,null,null,null,null,null,""]
[null,null,null,null,null,null,null,null,""]
[null,null,null,null,null,null,null,null,""]
[null,null,null,null,null,null,null,null,""]
[null,null,null,null,null,null,null,null,""]
[null,null,null,null,null,null,null,null,""]
[null,null,null,null,null,null,null,null,""]
[null,null,null,null,null,null,null,null,""]
[null,null,null,null,null,null,null,null,""]
[null,null,null,null,null,null,null,null,""]
[null,null,null,null,null,null,null,null,""]
[null,null,null,null,null,null,null,null,""]
[null,null,null,null,null,null,null,null,""]
[null,null,null,null,null,null,null,null,""]
[null,null,null,null,null,null,null,null,""]
[null,null,null,null,null,null,null,null,""]
[null,null,null,null,null,null,null,null,""]
[null,null,null,null,null,null,null,null,""]
[null,null,null,null,null,null,null,null,""]
[null,null,null,null,null,null,null,null,""]
[null,null,null,null,null,null,null,null,""]
[null,null,null,null,null,null,null,null,""]
[null,null,null,null,null,null,null,null,""]
[null,null,null,null,null,null,null,null,""]
[null,null,null,null,null,null,null,null,""]
[null,null,null,null,null,null,null,null,""]
[null,null,null,null,null,null,null,null,""]
[null,null,null,null,null,null,null,null,{"$f":"IF(H394<>\"\",IF(H394>G394,\"Revisar\",\"\"),\"\")","v":""}]
[null,null,null,null,null,null,null,null,""]
[null,null,null,null,null,null,null,null,""]
[null,null,null,null,null,null,null,null,""]
[null,null,null,null,null,null,null,null,""]
[null,null,null,null,null,null,null,null,""]
[null,null,null,null,null,null,null,null,""]
[null,null,null,null,null,null,null,null,""]
[null,null,null,null,null,null,null,null,""]
[null,null,null,null,null,null,null,null,""]
[null,null,null,null,null,null,null,null,""]
[null,null,null,null,null,null,null,null,""]
[null,null,null,null,null,null,null,null,""]
[null,null,null,null,null,null,null,null,""]
[null,null,null,null,null,null,null,null,""]
[null,null,null,null,null,null,null,null,""]
[null,null,null,null,null,null,null,null,""]
[null,null,null,null,null,null,null,null,""]
[null,null,null,null,null,null,null,null,""]
[null,null,null,null,null,null,null,null,""]
[null,null,null,null,null,null,null,null,""]
[null,null,null,null,null,null,null,null,""]
[null,null,null,null,null,null,null,null,""]
[null,null,null,null,null,null,null,null,""]
[null,null,null,null,null,null,null,null,""]
[null,null,null,null,null,null,null,null,""]
[null,null,null,null,null,null,null,null,""]
[null,null,null,null,null,null,null,null,""]
[null,null,null,null,null,null,null,null,""]
[null,null,null,null,null,null,null,null,""]
[null,null,null,null,null,null,null,null,""]
[null,null,null,null,null,null,null,null,""]
[null,null,null,null,null,null,null,null,""]
[null,null,null,null,null,null,null,null,""]
[null,null,null,null,null,null,null,null,""]
[null,null,null,null,null,null,null,null,""]
[null,null,null,null,null,null,null,null,""]
[null,null,null,null,null,null,null,null,""]
[null,null,null,null,null,null,null,null,""]
[null,null,null,null,null,null,null,null,""]
[null,null,null,null,null,null,null,null,""]
[null,null,null,null,null,null,null,null,""]
[null,null,null,null,null,null,null,null,""]
[null,null,null,null,null,null,null,null,""]
[null,null,null,null,null,null,null,null,""]
[null,null,null,null,null,null,null,null,""]
[null,null,null,null,null,null,null,null,""]
[null,null,null,null,null,null,null,null,""]
[null,null,null,null,null,null,null,null,""]
[null,null,null,null,null,null,null,null,""]
[null,null,null,null,null,null,null,null,""]
[null,null,null,null,null,null,null,null,""]
[null,null,null,null,null,null,null,null,""]
[null,null,null,null,null,null,null,null,""]
[null,null,null,null,null,null,null,null,""]
[null,null,null,null,null,null,null,null,""]
[null,null,null,null,null,null,null,null,""]
[null,null,null,null,null,null,null,null,""]
[null,null,null,null,null,null,null,null,""]
[null,null,null,null,null,null,null,null,""]
[null,null,null,null,null,null,null,null,""]
[null,null,null,null,null,null,null,null,""]
[null,null,null,null,null,null,null,null,""]
[null,null,null,null,null,null,null,null,""]
[null,null,null,null,null,null,null,null,{"$f":"IF(H458<>\"\",IF(H458>G458,\"Revisar\",\"\"),\"\")","v":""}]
[null,null,null,null,null,null,null,null,""]
[null,null,null,null,null,null,null,null,""]
[null,null,null,null,null,null,null,null,""]
[null,null,null,null,null,null,null,null,""]
[null,null,null,null,null,null,null,null,""]
[null,null,null,null,null,null,null,null,""]
[null,null,null,null,null,null,null,null,""]
[null,null,null,null,null,null,null,null,""]
[null,null,null,null,null,null,null,null,""]
[null,null,null,null,null,null,null,null,""]
[null,null,null,null,null,null,null,null,""]
[null,null,null,null,null,null,null,null,""]
[null,null,null,null,null,null,null,null,""]
[null,null,null,null,null,null,null,null,""]
[null,null,null,null,null,null,null,null,""]
[null,null,null,null,null,null,null,null,""]
[null,null,null,null,null,null,null,null,""]
[null,null,null,null,null,null,null,null,""]
[null,null,null,null,null,null,null,null,""]
[null,null,null,null,null,null,null,null,""]
[null,null,null,null,null,null,null,null,""]
[null,null,null,null,null,null,null,null,""]
[null,null,null,null,null,null,null,null,""]
[null,null,null,null,null,null,null,null,""]
[null,null,null,null,null,null,null,null,""]
[null,null,null,null,null,null,null,null,""]
[null,null,null,null,null,null,null,null,""]
[null,null,null,null,null,null,null,null,""]
[null,null,null,null,null,null,null,null,""]
[null,null,null,null,null,null,null,null,""]
[null,null,null,null,null,null,null,null,""]
[null,null,null,null,null,null,null,null,""]
[null,null,null,null,null,null,null,null,""]
[null,null,null,null,null,null,null,null,""]
[null,null,null,null,null,null,null,null,""]
[null,null,null,null,null,null,null,null,""]
[null,null,null,null,null,null,null,null,""]
[null,null,null,null,null,null,null,null,""]
[null,null,null,null,null,null,null,null,""]
[null,null,null,null,null,null,null,null,""]
[null,null,null,null,null,null,null,null,""]
[null,null,null,null,null,null,null,null,""]
[null,null,null,null,null,null,null,null,""]
[null,null,null,null,null,null,null,null,""]
[null,null,null,null,null,null,null,null,""]
[null,null,null,null,null,null,null,null,""]
[null,null,null,null,null,null,null,null,""]
[null,null,null,null,null,null,null,null,""]
[null,null,null,null,null,null,null,null,""]
[null,null,null,null,null,null,null,null,""]
[null,null,null,null,null,null,null,null,""]
[null,null,null,null,null,null,null,null,""]
[null,null,null,null,null,null,null,null,""]
[null,null,null,null,null,null,null,null,""]
[null,null,null,null,null,null,null,null,""]
[null,null,null,null,null,null,null,null,""]
[null,null,null,null,null,null,null,null,""]
[null,null,null,null,null,null,null,null,""]
[null,null,null,null,null,null,null,null,""]
[null,null,null,null,null,null,null,null,""]
[null,null,null,null,null,null,null,null,""]
[null,null,null,null,null,null,null,null,""]
[null,null,null,null,null,null,null,null,""]
[null,null,null,null,null,null,null,null,{"$f":"IF(H522<>\"\",IF(H522>G522,\"Revisar\",\"\"),\"\")","v":""}]
[null,null,null,null,null,null,null,null,""]
[null,null,null,null,null,null,null,null,""]
[null,null,null,null,null,null,null,null,""]
[null,null,null,null,null,null,null,null,""]
[null,null,null,null,null,null,null,null,""]
[null,null,null,null,null,null,null,null,""]
[null,null,null,null,null,null,null,null,""]
[null,null,null,null,null,null,null,null,""]
[null,null,null,null,null,null,null,null,""]
[null,null,null,null,null,null,null,null,""]
[null,null,null,null,null,null,null,null,""]
[null,null,null,null,null,null,null,null,""]
[null,null,null,null,null,null,null,null,""]
[null,null,null,null,null,null,null,null,""]
[null,null,null,null,null,null,null,null,""]
[null,null,null,null,null,null,null,null,""]
[null,null,null,null,null,null,null,null,""]
[null,null,null,null,null,null,null,null,""]
[null,null,null,null,null,null,null,null,""]
[null,null,null,null,null,null,null,null,""]
[null,null,null,null,null,null,null,null,""]
[null,null,null,null,null,null,null,null,""]
[null,null,null,null,null,null,null,null,""]
[null,null,null,null,null,null,null,null,""]
[null,null,null,null,null,null,null,null,""]
[null,null,null,null,null,null,null,null,""]
[null,null,null,null,null,null,null,null,""]
[null,null,null,null,null,null,null,null,""]
[null,null,null,null,null,null,null,null,""]
[null,null,null,null,null,null,null,null,""]
[null,null,null,null,null,null,null,null,""]
[null,null,null,null,null,null,null,null,""]
[null,null,null,null,null,null,null,null,""]
[null,null,null,null,null,null,null,null,""]
[null,null,null,null,null,null,null,null,""]
[null,null,null,null,null,null,null,null,""]
[null,null,null,null,null,null,null,null,""]
[null,null,null,null,null,null,null,null,""]
[null,null,null,null,null,null,null,null,""]
[null,null,null,null,null,null,null,null,""]
[null,null,null,null,null,null,null,null,""]
[null,null,null,null,null,null,null,null,""]
[null,null,null,null,null,null,null,null,""]
[null,null,null,null,null,null,null,null,""]
[null,null,null,null,null,null,null,null,""]
[null,null,null,null,null,null,null,null,""]
[null,null,null,null,null,null,null,null,""]
[null,null,null,null,null,null,null,null,""]
[null,null,null,null,null,null,null,null,""]
[null,null,null,null,null,null,null,null,""]
[null,null,null,null,null,null,null,null,""]
[null,null,null,null,null,null,null,null,""]
[null,null,null,null,null,null,null,null,""]
[null,null,null,null,null,null,null,null,""]
[null,null,null,null,null,null,null,null,""]
[null,null,null,null,null,null,null,null,""]
[null,null,null,null,null,null,null,null,""]
[null,null,null,null,null,null,null,null,""]
[null,null,null,null,null,null,null,null,""]
[null,null,null,null,null,null,null,null,""]
[null,null,null,null,null,null,null,null,""]
[null,null,null,null,null,null,null,null,""]
[null,null,null,null,null,null,null,null,""]
[null,null,null,null,null,null,null,null,{"$f":"IF(H586<>\"\",IF(H586>G586,\"Revisar\",\"\"),\"\")","v":""}]
[null,null,null,null,null,null,null,null,""]
[null,null,null,null,null,null,null,null,""]
[null,null,null,null,null,null,null,null,""]
[null,null,null,null,null,null,null,null,""]
[null,null,null,null,null,null,null,null,""]
[null,null,null,null,null,null,null,null,""]
[null,null,null,null,null,null,null,null,""]
[null,null,null,null,null,null,null,null,""]
[null,null,null,null,null,null,null,null,""]
[null,null,null,null,null,null,null,null,""]
[null,null,null,null,null,null,null,null,""]
[null,null,null,null,null,null,null,null,""]
[null,null,null,null,null,null,null,null,""]
[null,null,null,null,null,null,null,null,""]
[null,null,null,null,null,null,null,null,""]
[null,null,null,null,null,null,null,null,""]
[null,null,null,null,null,null,null,null,""]
[null,null,null,null,null,null,null,null,""]
[null,null,null,null,null,null,null,null,""]
[null,null,null,null,null,null,null,null,""]
[null,null,null,null,null,null,null,null,""]
[null,null,null,null,null,null,null,null,""]
[null,null,null,null,null,null,null,null,""]
[null,null,null,null,null,null,null,null,""]
[null,null,null,null,null,null,null,null,""]
[null,null,null,null,null,null,null,null,""]
[null,null,null,null,null,null,null,null,""]
[null,null,null,null,null,null,null,null,""]
[null,null,null,null,null,null,null,null,""]
[null,null,null,null,null,null,null,null,""]
[null,null,null,null,null,null,null,null,""]
[null,null,null,null,null,null,null,null,""]
[null,null,null,null,null,null,null,null,""]
[null,null,null,null,null,null,null,null,""]
[null,null,null,null,null,null,null,null,""]
[null,null,null,null,null,null,null,null,""]
[null,null,null,null,null,null,null,null,""]
[null,null,null,null,null,null,null,null,""]
[null,null,null,null,null,null,null,null,""]
[null,null,null,null,null,null,null,null,""]
[null,null,null,null,null,null,null,null,""]
[null,null,null,null,null,null,null,null,""]
[null,null,null,null,null,null,null,null,""]
[null,null,null,null,null,null,null,null,""]
[null,null,null,null,null,null,null,null,""]
[null,null,null,null,null,null,null,null,""]
[null,null,null,null,null,null,null,null,""]
[null,null,null,null,null,null,null,null,""]
[null,null,null,null,null,null,null,null,""]
[null,null,null,null,null,null,null,null,""]
[null,null,null,null,null,null,null,null,""]
[null,null,null,null,null,null,null,null,""]
[null,null,null,null,null,null,null,null,""]
[null,null,null,null,null,null,null,null,""]
[null,null,null,null,null,null,null,null,""]
[null,null,null,null,null,null,null,null,""]
[null,null,null,null,null,null,null,null,""]
[null,null,null,null,null,null,null,null,""]
[null,null,null,null,null,null,null,null,""]
[null,null,null,null,null,null,null,null,""]
[null,null,null,null,null,null,null,null,""]
[null,null,null,null,null,null,null,null,""]
[null,null,null,null,null,null,null,null,""]
[null,null,null,null,null,null,null,null,{"$f":"IF(H650<>\"\",IF(H650>G650,\"Revisar\",\"\"),\"\")","v":""}]
[null,null,null,null,null,null,null,null,""]
[null,null,null,null,null,null,null,null,""]
[null,null,null,null,null,null,null,null,""]
[null,null,null,null,null,null,null,null,""]
[null,null,null,null,null,null,null,null,""]
[null,null,null,null,null,null,null,null,""]
[null,null,null,null,null,null,null,null,""]
[null,null,null,null,null,null,null,null,""]
[null,null,null,null,null,null,null,null,""]
[null,null,null,null,null,null,null,null,""]
[null,null,null,null,null,null,null,null,""]
[null,null,null,null,null,null,null,null,""]
[null,null,null,null,null,null,null,null,""]
[null,null,null,null,null,null,null,null,""]
[null,null,null,null,null,null,null,null,""]
[null,null,null,null,null,null,null,null,""]
[null,null,null,null,null,null,null,null,""]
[null,null,null,null,null,null,null,null,""]
[null,null,null,null,null,null,null,null,""]
[null,null,null,null,null,null,null,null,""]
[null,null,null,null,null,null,null,null,""]
[null,null,null,null,null,null,null,null,""]
[null,null,null,null,null,null,null,null,""]
[null,null,null,null,null,null,null,null,""]
[null,null,null,null,null,null,null,null,""]
[null,null,null,null,null,null,null,null,""]
[null,null,null,null,null,null,null,null,""]
[null,null,null,null,null,null,null,null,""]
[null,null,null,null,null,null,null,null,""]
[null,null,null,null,null,null,null,null,""]
[null,null,null,null,null,null,null,null,""]
[null,null,null,null,null,null,null,null,""]
[null,null,null,null,null,null,null,null,""]
[null,null,null,null,null,null,null,null,""]
[null,null,null,null,null,null,null,null,""]
[null,null,null,null,null,null,null,null,""]
[null,null,null,null,null,null,null,null,""]
[null,null,null,null,null,null,null,null,""]
[null,null,null,null,null,null,null,null,""]
[null,null,null,null,null,null,null,null,""]
[null,null,null,null,null,null,null,null,""]
[null,null,null,null,null,null,null,null,""]
[null,null,null,null,null,null,null,null,""]
[null,null,null,null,null,null,null,null,""]
[null,null,null,null,null,null,null,null,""]
[null,null,null,null,null,null,null,null,""]
[null,null,null,null,null,null,null,null,""]
[null,null,null,null,null,null,null,null,""]
[null,null,null,null,null,null,null,null,""]
[null,null,null,null,null,null,null,null,""]
[null,null,null,null,null,null,null,null,""]
[null,null,null,null,null,null,null,null,""]
[null,null,null,null,null,null,null,null,""]
[null,null,null,null,null,null,null,null,""]
[null,null,null,null,null,null,null,null,""]
[null,null,null,null,null,null,null,null,""]
[null,null,null,null,null,null,null,null,""]
[null,null,null,null,null,null,null,null,""]
[null,null,null,null,null,null,null,null,""]
[null,null,null,null,null,null,null,null,""]
[null,null,null,null,null,null,null,null,""]
[null,null,null,null,null,null,null,null,""]
[null,null,null,null,null,null,null,null,""]
[null,null,null,null,null,null,null,null,{"$f":"IF(H714<>\"\",IF(H714>G714,\"Revisar\",\"\"),\"\")","v":""}]
[null,null,null,null,null,null,null,null,""]
[null,null,null,null,null,null,null,null,""]
[null,null,null,null,null,null,null,null,""]
[null,null,null,null,null,null,null,null,""]
[null,null,null,null,null,null,null,null,""]
[null,null,null,null,null,null,null,null,""]
[null,null,null,null,null,null,null,null,""]
[null,null,null,null,null,null,null,null,""]
[null,null,null,null,null,null,null,null,""]
[null,null,null,null,null,null,null,null,""]
[null,null,null,null,null,null,null,null,""]
[null,null,null,null,null,null,null,null,""]
[null,null,null,null,null,null,null,null,""]
[null,null,null,null,null,null,null,null,""]
[null,null,null,null,null,null,null,null,""]
[null,null,null,null,null,null,null,null,""]
[null,null,null,null,null,null,null,null,""]
[null,null,null,null,null,null,null,null,""]
[null,null,null,null,null,null,null,null,""]
[null,null,null,null,null,null,null,null,""]
[null,null,null,null,null,null,null,null,""]
[null,null,null,null,null,null,null,null,""]
[null,null,null,null,null,null,null,null,""]
[null,null,null,null,null,null,null,null,""]
[null,null,null,null,null,null,null,null,""]
[null,null,null,null,null,null,null,null,""]
[null,null,null,null,null,null,null,null,""]
[null,null,null,null,null,null,null,null,""]
[null,null,null,null,null,null,null,null,""]
[null,null,null,null,null,null,null,null,""]
[null,null,null,null,null,null,null,null,""]
[null,null,null,null,null,null,null,null,""]
[null,null,null,null,null,null,null,null,""]
[null,null,null,null,null,null,null,null,""]
[null,null,null,null,null,null,null,null,""]
[null,null,null,null,null,null,null,null,""]
[null,null,null,null,null,null,null,null,""]
[null,null,null,null,null,null,null,null,""]
[null,null,null,null,null,null,null,null,""]
[null,null,null,null,null,null,null,null,""]
[null,null,null,null,null,null,null,null,""]
[null,null,null,null,null,null,null,null,""]
[null,null,null,null,null,null,null,null,""]
[null,null,null,null,null,null,null,null,""]
[null,null,null,null,null,null,null,null,""]
[null,null,null,null,null,null,null,null,""]
[null,null,null,null,null,null,null,null,""]
[null,null,null,null,null,null,null,null,""]
[null,null,null,null,null,null,null,null,""]
[null,null,null,null,null,null,null,null,""]
[null,null,null,null,null,null,null,null,""]
[null,null,null,null,null,null,null,null,""]
[null,null,null,null,null,null,null,null,""]
[null,null,null,null,null,null,null,null,""]
[null,null,null,null,null,null,null,null,""]
[null,null,null,null,null,null,null,null,""]
[null,null,null,null,null,null,null,null,""]
[null,null,null,null,null,null,null,null,""]
[null,null,null,null,null,null,null,null,""]
[null,null,null,null,null,null,null,null,""]
[null,null,null,null,null,null,null,null,""]
[null,null,null,null,null,null,null,null,""]
[null,null,null,null,null,null,null,null,""]
[null,null,null,null,null,null,null,null,{"$f":"IF(H778<>\"\",IF(H778>G778,\"Revisar\",\"\"),\"\")","v":""}]
[null,null,null,null,null,null,null,null,""]
[null,null,null,null,null,null,null,null,""]
[null,null,null,null,null,null,null,null,""]
[null,null,null,null,null,null,null,null,""]
[null,null,null,null,null,null,null,null,""]
[null,null,null,null,null,null,null,null,""]
[null,null,null,null,null,null,null,null,""]
[null,null,null,null,null,null,null,null,""]
[null,null,null,null,null,null,null,null,""]
[null,null,null,null,null,null,null,null,""]
[null,null,null,null,null,null,null,null,""]
[null,null,null,null,null,null,null,null,""]
[null,null,null,null,null,null,null,null,""]
[null,null,null,null,null,null,null,null,""]
[null,null,null,null,null,null,null,null,""]
[null,null,null,null,null,null,null,null,""]
[null,null,null,null,null,null,null,null,""]
[null,null,null,null,null,null,null,null,""]
[null,null,null,null,null,null,null,null,""]
[null,null,null,null,null,null,null,null,""]
[null,null,null,null,null,null,null,null,""]
[null,null,null,null,null,null,null,null,""]
[null,null,null,null,null,null,null,null,""]
[null,null,null,null,null,null,null,null,""]
[null,null,null,null,null,null,null,null,""]
[null,null,null,null,null,null,null,null,""]
[null,null,null,null,null,null,null,null,""]
[null,null,null,null,null,null,null,null,""]
[null,null,null,null,null,null,null,null,""]
[null,null,null,null,null,null,null,null,""]
[null,null,null,null,null,null,null,null,""]
[null,null,null,null,null,null,null,null,""]
[null,null,null,null,null,null,null,null,""]
[null,null,null,null,null,null,null,null,""]
[null,null,null,null,null,null,null,null,""]
[null,null,null,null,null,null,null,null,""]
[null,null,null,null,null,null,null,null,""]
[null,null,null,null,null,null,null,null,""]
[null,null,null,null,null,null,null,null,""]
[null,null,null,null,null,null,null,null,""]
[null,null,null,null,null,null,null,null,""]
[null,null,null,null,null,null,null,null,""]
[null,null,null,null,null,null,null,null,""]
[null,null,null,null,null,null,null,null,""]
[null,null,null,null,null,null,null,null,""]
[null,null,null,null,null,null,null,null,""]
[null,null,null,null,null,null,null,null,""]
[null,null,null,null,null,null,null,null,""]
[null,null,null,null,null,null,null,null,""]
[null,null,null,null,null,null,null,null,""]
[null,null,null,null,null,null,null,null,""]
[null,null,null,null,null,null,null,null,""]
[null,null,null,null,null,null,null,null,""]
[null,null,null,null,null,null,null,null,""]
[null,null,null,null,null,null,null,null,""]
[null,null,null,null,null,null,null,null,""]
[null,null,null,null,null,null,null,null,""]
[null,null,null,null,null,null,null,null,""]
[null,null,null,null,null,null,null,null,""]
[null,null,null,null,null,null,null,null,""]
[null,null,null,null,null,null,null,null,""]
[null,null,null,null,null,null,null,null,""]
[null,null,null,null,null,null,null,null,""]
[null,null,null,null,null,null,null,null,{"$f":"IF(H842<>\"\",IF(H842>G842,\"Revisar\",\"\"),\"\")","v":""}]
[null,null,null,null,null,null,null,null,""]
[null,null,null,null,null,null,null,null,""]
[null,null,null,null,null,null,null,null,""]
[null,null,null,null,null,null,null,null,""]
[null,null,null,null,null,null,null,null,""]
[null,null,null,null,null,null,null,null,""]
[null,null,null,null,null,null,null,null,""]
[null,null,null,null,null,null,null,null,""]
[null,null,null,null,null,null,null,null,""]
[null,null,null,null,null,null,null,null,""]
[null,null,null,null,null,null,null,null,""]
[null,null,null,null,null,null,null,null,""]
[null,null,null,null,null,null,null,null,""]
[null,null,null,null,null,null,null,null,""]
[null,null,null,null,null,null,null,null,""]
[null,null,null,null,null,null,null,null,""]
[null,null,null,null,null,null,null,null,""]
[null,null,null,null,null,null,null,null,""]
[null,null,null,null,null,null,null,null,""]
[null,null,null,null,null,null,null,null,""]
[null,null,null,null,null,null,null,null,""]
[null,null,null,null,null,null,null,null,""]
[null,null,null,null,null,null,null,null,""]
[null,null,null,null,null,null,null,null,""]
[null,null,null,null,null,null,null,null,""]
[null,null,null,null,null,null,null,null,""]
[null,null,null,null,null,null,null,null,""]
[null,null,null,null,null,null,null,null,""]
[null,null,null,null,null,null,null,null,""]
[null,null,null,null,null,null,null,null,""]
[null,null,null,null,null,null,null,null,""]
[null,null,null,null,null,null,null,null,""]
[null,null,null,null,null,null,null,null,""]
[null,null,null,null,null,null,null,null,""]
[null,null,null,null,null,null,null,null,""]
[null,null,null,null,null,null,null,null,""]
[null,null,null,null,null,null,null,null,""]
[null,null,null,null,null,null,null,null,""]
[null,null,null,null,null,null,null,null,""]
[null,null,null,null,null,null,null,null,""]
[null,null,null,null,null,null,null,null,""]
[null,null,null,null,null,null,null,null,""]
[null,null,null,null,null,null,null,null,""]
[null,null,null,null,null,null,null,null,""]
[null,null,null,null,null,null,null,null,""]
[null,null,null,null,null,null,null,null,""]
[null,null,null,null,null,null,null,null,""]
[null,null,null,null,null,null,null,null,""]
[null,null,null,null,null,null,null,null,""]
[null,null,null,null,null,null,null,null,""]
[null,null,null,null,null,null,null,null,""]
[null,null,null,null,null,null,null,null,""]
[null,null,null,null,null,null,null,null,""]
[null,null,null,null,null,null,null,null,""]
[null,null,null,null,null,null,null,null,""]
[null,null,null,null,null,null,null,null,""]
[null,null,null,null,null,null,null,null,""]
[null,null,null,null,null,null,null,null,""]
[null,null,null,null,null,null,null,null,""]
[null,null,null,null,null,null,null,null,""]
[null,null,null,null,null,null,null,null,""]
[null,null,null,null,null,null,null,null,""]
[null,null,null,null,null,null,null,null,""]
[null,null,null,null,null,null,null,null,{"$f":"IF(H906<>\"\",IF(H906>G906,\"Revisar\",\"\"),\"\")","v":""}]
[null,null,null,null,null,null,null,null,""]
[null,null,null,null,null,null,null,null,""]
[null,null,null,null,null,null,null,null,""]
[null,null,null,null,null,null,null,null,""]
[null,null,null,null,null,null,null,null,""]
[null,null,null,null,null,null,null,null,""]
[null,null,null,null,null,null,null,null,""]
[null,null,null,null,null,null,null,null,""]
[null,null,null,null,null,null,null,null,""]
[null,null,null,null,null,null,null,null,""]
[null,null,null,null,null,null,null,null,""]
[null,null,null,null,null,null,null,null,""]
[null,null,null,null,null,null,null,null,""]
[null,null,null,null,null,null,null,null,""]
[null,null,null,null,null,null,null,null,""]
[null,null,null,null,null,null,null,null,""]
[null,null,null,null,null,null,null,null,""]
[null,null,null,null,null,null,null,null,""]
[null,null,null,null,null,null,null,null,""]
[null,null,null,null,null,null,null,null,""]
[null,null,null,null,null,null,null,null,""]
[null,null,null,null,null,null,null,null,""]
[null,null,null,null,null,null,null,null,""]
[null,null,null,null,null,null,null,null,""]
[null,null,null,null,null,null,null,null,""]
[null,null,null,null,null,null,null,null,""]
[null,null,null,null,null,null,null,null,""]
[null,null,null,null,null,null,null,null,""]
[null,null,null,null,null,null,null,null,""]
[null,null,null,null,null,null,null,null,""]
[null,null,null,null,null,null,null,null,""]
[null,null,null,null,null,null,null,null,""]
[null,null,null,null,null,null,null,null,""]
[null,null,null,null,null,null,null,null,""]
[null,null,null,null,null,null,null,null,""]
[null,null,null,null,null,null,null,null,""]
[null,null,null,null,null,null,null,null,""]
[null,null,null,null,null,null,null,null,""]
[null,null,null,null,null,null,null,null,""]
[null,null,null,null,null,null,null,null,""]
[null,null,null,null,null,null,null,null,""]
[null,null,null,null,null,null,null,null,""]
[null,null,null,null,null,null,null,null,""]
[null,null,null,null,null,null,null,null,""]
[null,null,null,null,null,null,null,null,""]
[null,null,null,null,null,null,null,null,""]
[null,null,null,null,null,null,null,null,""]
[null,null,null,null,null,null,null,null,""]
[null,null,null,null,null,null,null,null,""]
[null,null,null,null,null,null,null,null,""]
[null,null,null,null,null,null,null,null,""]
[null,null,null,null,null,null,null,null,""]
[null,null,null,null,null,null,null,null,""]
[null,null,null,null,null,null,null,null,""]
[null,null,null,null,null,null,null,null,""]
[null,null,null,null,null,null,null,null,""]
[null,null,null,null,null,null,null,null,""]
[null,null,null,null,null,null,null,null,""]
[null,null,null,null,null,null,null,null,""]
[null,null,null,null,null,null,null,null,""]
[null,null,null,null,null,null,null,null,""]
[null,null,null,null,null,null,null,null,""]
[null,null,null,null,null,null,null,null,""]
[null,null,null,null,null,null,null,null,{"$f":"IF(H970<>\"\",IF(H970>G970,\"Revisar\",\"\"),\"\")","v":""}]
[null,null,null,null,null,null,null,null,""]
[null,null,null,null,null,null,null,null,""]
[null,null,null,null,null,null,null,null,""]
[null,null,null,null,null,null,null,null,""]
[null,null,null,null,null,null,null,null,""]
[null,null,null,null,null,null,null,null,""]
[null,null,null,null,null,null,null,null,""]
[null,null,null,null,null,null,null,null,""]
[null,null,null,null,null,null,null,null,""]
[null,null,null,null,null,null,null,null,""]
[null,null,null,null,null,null,null,null,""]
[null,null,null,null,null,null,null,null,""]
[null,null,null,null,null,null,null,null,""]
[null,null,null,null,null,null,null,null,""]
[null,null,null,null,null,null,null,null,""]
[null,null,null,null,null,null,null,null,""]
[null,null,null,null,null,null,null,null,""]
[null,null,null,null,null,null,null,null,""]
[null,null,null,null,null,null,null,null,""]
[null,null,null,null,null,null,null,null,""]
[null,null,null,null,null,null,null,null,""]
[null,null,null,null,null,null,null,null,""]
[null,null,null,null,null,null,null,null,""]
[null,null,null,null,null,null,null,null,""]
[null,null,null,null,null,null,null,null,""]
[null,null,null,null,null,null,null,null,""]
[null,null,null,null,null,null,null,null,""]
[null,null,null,null,null,null,null,null,""]
[null,null,null,null,null,null,null,null,""]